Cogmind - Beta 13 *** ADVENTURER MODE // 2024.04.28 @ 19:01:19 Player: swetpototo Result: Destroyed by G-47 Trooper with Particle Gun Performance ------------- Evolutions (2) 1000 Regions Visited (3) 600 Robots Destroyed (31) 155 Value Destroyed (743) 743 Prototype IDs (1) 20 Alien Tech Used (0) 0 Bonus (23) 23 TOTAL SCORE: 2541 Bonus ------- High Alert Combat Kills 23 Cogmind --------- Core Integrity 0/550 Matter 249/300 Energy 100/100 System Corruption 1% Temperature Cool (9) Movement Core (200) Ox3 Location -8/Materials Parts ------- > --- POWER (2) -------- (None) > --- PROPULSION (3) --- (None) > --- UTILITY (4) ------ Medium Storage Unit Improved Propulsion Shielding > --- WEAPON (2) ------- (None) > --- INVENTORY (10) --- Improved Heat Sink Small Storage Unit Improved Propulsion Shielding High-powered Shotgun Grenade Launcher Peak State ------------ > --- POWER ------------ Light Ion Engine > --- PROPULSION ------- Gravmag System Gravmag System Gravmag System > --- UTILITY ---------- Medium Storage Unit Improved Weapon Shielding > --- WEAPON ----------- Light Cannon > --- INVENTORY -------- Flight Unit Improved Heat Sink Small Storage Unit Large Matter Pod Sensor Array Improved Propulsion Shielding High-powered Shotgun Grenade Launcher [Rating: 19] Favorites ----------- Power Light Ion Engine Engine Light Ion Engine Propulsion Compact Wheel Wheel Compact Wheel Hover Unit Gravmag System Flight Unit Flight Unit Utility Small Storage Unit Device Shield Generator Storage Small Storage Unit Hackware System Shield Protection Improved Propulsion Shielding Weapon Assault Rifle Energy Cannon Beam Cannon Ballistic Gun Assault Rifle Ballistic Cannon Light Cannon Build | -11 -10 -9 -8 ------- Run | Yrd Mat Mat Mat Slots Evolved 4 | . . 2 2 Power 1 | . . . 1 Propulsion 1 | . . 1 . Utility 2 | . . 1 1 Weapon . | . . . . Parts Attached 33 | 2 6 4 21 Power 4 | . 1 . 3 Engine 4 | . 1 . 3 Core . | . . . . Reactor . | . . . . Propulsion 15 | 2 . 2 11 Treads . | . . . . Leg . | . . . . Wheel 4 | 2 . 2 . Hover 5 | . . . 5 Flight 6 | . . . 6 Utility 10 | . 3 2 5 Device 4 | . 2 2 . Storage 3 | . 1 . 2 Processor . | . . . . Hackware 1 | . . . 1 Protection 2 | . . . 2 Artifact . | . . . . Weapon 4 | . 2 . 2 Energy Gun . | . . . . Energy Cannon 1 | . . . 1 Ballistic Gun 2 | . 2 . . Ballistic Cannon 1 | . . . 1 Launcher . | . . . . Special Weapon . | . . . . Impact Weapon . | . . . . Slashing Weapon . | . . . . Piercing Weapon . | . . . . Special Melee Weapon . | . . . . Unidentified Prototypes 1 | . . . 1 Parts Lost 16 | . . . 16 Power 4 | . . . 4 Propulsion 5 | . . . 5 Utility 3 | . . . 3 Weapon 4 | . . . 4 Highest Loss Streak 5 | . . . 5 To Critical Strikes . | . . . . Average Slot Usage (%) 79 | . 96 99 57 Engine 10 | . 14 11 8 Wheel 22 | . 28 33 11 Hover 4 | . . . 9 Device 10 | . 10 21 3 Storage 10 | . 14 11 9 Energy Cannon 1 | . . . 4 Ballistic Gun 16 | . 28 22 6 Naked Turns . | . . . . Heaviest Build 18 | . 13 16 18 Greatest Support 42 | 26 26 42 42 Greatest Overweight (x) 3 | . . . 3 Average Overweight (x) . | . . . . Largest Inventory Capacity 10 | 5 8 8 10 Average Capacity 7 | 5 7 8 8 Most Carried 9 | 5 7 8 9 Average Carried 6 | 3 4 7 7 Final Capacity 10 | 5 8 8 10 Final Carried 8 | 5 7 8 5 Class Distribution -------------------- 92% | Mutant 7% | Hacker-Mutant Dominant Class ---------------- Mutant | -10/Materials Mutant | -9/Materials Mutant | -8/Materials Resources | -11 -10 -9 -8 ----------- Run | Yrd Mat Mat Mat Matter Collected 996 | 210 143 380 263 Remotely . | . . . . Salvage Created 941 | . 136 483 322 Parts 69 | . 12 42 15 Haulers Intercepted 1 | . . . 1 Recyclers Shooed . | . . . . Parts Field Recycled . | . . . . Retrieved Matter . | . . . . Parts Self-Destructed . | . . . . Prevented . | . . . . Kills | -11 -10 -9 -8 ------- Run | Yrd Mat Mat Mat Combat Hostiles Destroyed 25 | . 2 16 7 Guns 20 | . 2 16 2 Cannons 5 | . . . 5 Classes Destroyed 6 | . 2 2 2 Hauler 1 | . . . 1 Watcher 5 | . 2 2 1 Swarmer 13 | . . 10 3 Grunt 7 | . 2 3 2 Sentry 3 | . . 3 . Hunter 2 | . . . 2 Best Kill Streak 6 | . 2 6 3 Combat Bots Only 5 | . 2 5 3 Max Kills in Single Turn 2 | . 1 2 1 Gunslinging 1 | . . 1 . Exploded . | . . . . Melee . | . . . . Uniques/NPCs Destroyed . | . . . . Combat | -11 -10 -9 -8 -------- Run | Yrd Mat Mat Mat Hostile Shots Fired 259 | . 4 63 192 Missed 71 | . 2 20 49 Damage Taken 1784 | . 24 216 1544 Core 598 | . . 47 551 Absorbed by Shields 212 | . . 89 123 Redirected to Shielding 82 | . . . 82 Ignored by Resistances 586 | . 8 99 479 Core Remaining (%) 96 | 100 100 88 . Volleys Fired 103 | . 9 36 58 Largest 2 | . 2 2 2 Hottest 80 | . 40 40 80 Shots Fired 175 | . 18 72 85 Gun 136 | . 18 72 46 Cannon 39 | . . . 39 Launcher . | . . . . Special . | . . . . Kinetic 143 | . 18 72 53 Thermal 32 | . . . 32 Explosive . | . . . . Electromagnetic . | . . . . Robot Hit Streak 18 | . 5 12 18 Robot Miss Streak 3 | . 1 3 3 Penetration Max . | . . . . Secondary Targets 2 | . . 2 . Max Gunslinging Chain 1 | . . 1 . Shots Hit Robots 126 | . 10 51 65 Core Hits 52 | . 7 24 21 Critical Kills 2 | . . 1 1 Critical Parts Destroyed . | . . . . Critical Strikes 3 | . . 1 2 Meltdown 1 | . . . 1 Destroy 1 | . . 1 . Blast 1 | . . . 1 Melee Attacks . | . . . . Impact . | . . . . Slashing . | . . . . Piercing . | . . . . Sneak Attacks . | . . . . Combat Hostiles . | . . . . Follow-up Attacks . | . . . . Damage Inflicted 1734 | . 123 661 950 Guns 1236 | . 123 661 452 Cannons 492 | . . . 492 Explosions . | . . . . Melee . | . . . . Ramming 6 | . . . 6 Kinetic 1340 | . 123 661 556 Thermal 388 | . . . 388 Explosive . | . . . . Electromagnetic . | . . . . Impact . | . . . . Slashing . | . . . . Piercing . | . . . . Highest Corruption 1 | . . . 1 Average Corruption 1 | . . . 1 Corruption Purged . | . . . . Corruption Blocked . | . . . . Effects 1 | . . . 1 Misfires 1 | . . . 1 Overload Shots . | . . . . Overflow Damage . | . . . . Projectiles . | . . . . Explosions . | . . . . Melee . | . . . . Knockbacks 3 | . . . 3 Impact . | . . . . Kinetic 3 | . . . 3 Secondary . | . . . . Self-Inflicted Damage 3 | . . . 3 Shots . | . . . . Rammed 3 | . . . 3 Targets Rammed 3 | . . . 3 Kicked . | . . . . Crushed . | . . . . Highest Temperature 64 | . 8 . 64 Average Temperature 22 | . 3 . 23 Received Heat Transfer 718 | . 18 58 642 Siege Activations . | . . . . Robots Corrupted . | . . . . Combat Hostiles . | . . . . Parts Fried . | . . . . Impact Corruptions . | . . . . Robots Melted 1 | . . . 1 Combat Hostiles . | . . . . Parts Melted 5 | . . . 5 Heat Transferred 814 | . . . 814 Parts Sabotaged . | . . . . Parts Stolen . | . . . . Parts Stripped . | . . . . Power Chain Reactions . | . . . . Alert | -11 -10 -9 -8 ------- Run | Yrd Mat Mat Mat Peak Influence 514 | . 87 514 434 Initial 184 | . . 31 184 Average 216 | . 54 299 280 Maximum Alert Level 2 | . . 2 2 Low Security (%) 44 | 100 100 34 12 Level 1 39 | . . 30 74 Level 2 15 | . . 35 13 Level 3 . | . . . . Level 4 . | . . . . Level 5 . | . . . . High Security . | . . . . Max Security . | . . . . Squads Dispatched 9 | . 1 2 6 Investigation 4 | . 1 1 2 Extermination . | . . . . Reinforcement 3 | . . 1 2 Assault . | . . . . Garrison 2 | . . . 2 Intercept . | . . . . Searches Triggered . | . . . . Construction Impeded . | . . . . Haulers Reinforced . | . . . . Active Scanning Responses . | . . . . Cargo Convoy Interrupts . | . . . . Stealth | -11 -10 -9 -8 --------- Run | Yrd Mat Mat Mat Distress Signals 4 | . . 2 2 Communications Jammed . | . . . . Distress Signals . | . . . . Times Spotted 58 | . 5 20 33 Peak Tracking Total 11 | . 2 6 11 Tactical Retreats 3 | . . . 3 Traps | -11 -10 -9 -8 ------- Run | Yrd Mat Mat Mat Traps Triggered 4 | . 2 . 2 Indirectly . | . . . . Trap Hack Attempts . | . . . . Triggered . | . . . . Disarmed . | . . . . Reprogrammed . | . . . . Reused . | . . . . Traps Extracted . | . . . . Installed . | . . . . Triggered . | . . . . Machines | -11 -10 -9 -8 ---------- Run | Yrd Mat Mat Mat Machines Disabled . | . . . . Max in Single Turn . | . . . . Machines Repaired . | . . . . Machines Dismantled . | . . . . Machines Sabotaged . | . . . . Overloaded Fab Kills . | . . . . Hacking | -11 -10 -9 -8 --------- Run | Yrd Mat Mat Mat Machines Accessed 6 | . 1 2 3 Terminals 6 | . 1 2 3 Fabricators . | . . . . Repair Stations . | . . . . Recycling Units . | . . . . Scanalyzers . | . . . . Garrison Access . | . . . . Total Hacks 13 | . 3 4 6 Successful 3 | . 1 2 . Failed 10 | . 2 2 6 Catastrophic 4 | . . 2 2 Database Lockouts . | . . . . Manual 12 | . 3 3 6 Terminals 13 | . 3 4 6 Fabricators . | . . . . Repair Stations . | . . . . Recycling Units . | . . . . Scanalyzers . | . . . . Garrison Access . | . . . . Terminal Hacks 3 | . 1 2 . Record 1 | . . 1 . Level Access Points 2 | . 1 1 . Fabricator Hacks . | . . . . Repair Station Hacks . | . . . . Recycling Unit Hacks . | . . . . Scanalyzer . | . . . . Garrison Access Hacks . | . . . . Unauthorized Hacks . | . . . . Terminals . | . . . . Fabricators . | . . . . Repair Stations . | . . . . Recycling Units . | . . . . Scanalyzers . | . . . . Garrison Access . | . . . . Data Cores Recovered . | . . . . Used . | . . . . Hacking Detections 5 | . 1 2 2 Full Trace Events 4 | . 1 1 2 Feedback Events . | . . . . Feedback Blocked . | . . . . Robot Schematics Acquired . | . . . . Robots Built . | . . . . Authchips . | . . . . Time . | . . . . Total Robot Build Rating . | . . . . Part Schematics Acquired . | . . . . Parts Built . | . . . . Authchips . | . . . . Time . | . . . . Total Part Build Rating . | . . . . Parts Repaired . | . . . . Time . | . . . . Parts Recycled . | . . . . Recycled Matter . | . . . . Retrieved Matter . | . . . . Retrieved Components . | . . . . Parts Scanalyzed . | . . . . Part Schematics Acquired . | . . . . Parts Damaged . | . . . . Bothacking | -11 -10 -9 -8 ------------ Run | Yrd Mat Mat Mat Used RIF Installer . | . . . . Robots Hacked . | . . . . Non-combat . | . . . . Combat . | . . . . Robot Hacks Applied . | . . . . Relay Couplers Released . | . . . . Fabnet Peak Effective % . | . . . . Robots Rewired . | . . . . Allies Hacked . | . . . . Hacks Repelled . | . . . . Allies | -11 -10 -9 -8 -------- Run | Yrd Mat Mat Mat Total Allies . | . . . . Largest Group . | . . . . Highest-Rated Group . | . . . . Highest-Rated Ally . | . . . . Total Orders . | . . . . Ally Attacks . | . . . . Total Damage . | . . . . Kills . | . . . . Allies Corrupted . | . . . . Allies Melted . | . . . . Intel | -11 -10 -9 -8 ------- Run | Yrd Mat Mat Mat Robot Analysis Total . | . . . . Derelict Logs Recovered . | . . . . Drone Launches . | . . . . Drone Recoveries . | . . . . Exploration | -11 -10 -9 -8 ------------- Run | Yrd Mat Mat Mat Turns Passed 852 | 43 208 245 356 Spaces Moved 620 | 47 184 145 244 Core 26 | 19 . . 7 Treads . | . . . . Legs . | . . . . Wheels 431 | 28 184 145 74 Hover 139 | . . . 139 Flight 24 | . . . 24 Fastest Speed 34 | 50 90 86 34 Average Speed 79 | 73 90 88 68 Slowest Speed 205 | 90 90 93 205 Overloaded Moves . | . . . . Propulsion Burnouts . | . . . . Robots Hopped . | . . . . Cave-ins Triggered . | . . . . Exploration Rate (%) 23 | 3 36 21 34 Regions Visited 3 Branch Regions . Pre-discovered Areas . | . . . . Known Exits Taken 2 | . 1 1 . Unknown Exits Taken 1 | 1 . . . Scrap Searched . | . . . . Spaces Dug . | . . . . Terrain Destroyed . | . . . . Melee . | . . . . Projectile . | . . . . AOE . | . . . . Terrain Rammed . | . . . . Walls Destroyed . | . . . . Machines Disabled . | . . . . Actions | -11 -10 -9 -8 --------- Run | Yrd Mat Mat Mat Total 798 | 55 207 190 346 Wait 5 | . 2 2 1 Move 617 | 46 183 144 244 Hop . | . . . . Pick Up 27 | 7 7 3 10 Fast Attach 9 | . . . 9 Attach 16 | 2 5 2 7 Detach . | . . . . Swap 8 | . 1 2 5 Drop 10 | . . 1 9 Fire 103 | . 9 36 58 Melee . | . . . . Ram 3 | . . . 3 Kick . | . . . . Crush . | . . . . Escape Stasis . | . . . . Rewire . | . . . . Trap . | . . . . Miscellaneous . | . . . . Route ------- -11/Scrapyard -10/Materials (discovered 3 exits: *Mat x3) -9/Materials (discovered 3 exits: *Mat x3) -8/Materials History --------- Turn | Location | Event 3 | -11/Scrapyard | Discovered new exit (range 16) 44 | -11/Scrapyard | Entered Materials 112 | -10/Materials | Identified exit to Materials 252 | -10/Materials | Entered another Materials area 252 | -9/Materials | Evolved 2 slots: Propulsion x1, Utility x1 311 | -9/Materials | Build established: Mutant 313 | -9/Materials | Identified exit to Materials 497 | -9/Materials | Entered another Materials area 497 | -8/Materials | Evolved 2 slots: Power x1, Utility x1 637 | -8/Materials | Lost 5 parts (1p1n2u1w) 672 | -8/Materials | Garrison activated, responded to threat 708 | -8/Materials | Lost 3 parts (1p1n1w) 829 | -8/Materials | Core integrity fell below 50% 842 | -8/Materials | Core integrity fell below 20% 853 | -8/Materials | Destroyed by G-47 Trooper with Particle Gun Last Messages --------------- Acquired Imp. Propulsion Shielding. Connecting with Terminal... ALERT: Suspicious activity at Terminal M002. Dispatching Investigation squad. Slammed into G-47 Trooper. Destabilizing: Core damaged (-16). Lgt. Ion Engine destroyed. G-47 Trooper knocked back. Gravmag System destroyed. G-47 Trooper Imp. Heat Sink blasted off. G-47 Trooper knocked back. Gravmag System destroyed. Critical hit (Burn: +37). Acquired 3 matter. Slammed into Y-45 Defender. Lgt. Cannon destroyed. Gravmag System destroyed. Slammed into G-47 Trooper. Dropped Med. Storage Unit. Acquired Med. Storage Unit. Map ----- +----------------------------------------------------+ | | | | | | | | | | | | | ?????????????????????????????????????????????????? | | ?????????????????????????????????????????????????? | | ?????????????????????????????????????????????????? | | ?????????????????????????????????????????????????? | | ?????????????????????????????##??????????????????? | | ?????????????????????######## ##?????????????????? | | ?????????????????????# T [ %#?????????????????? | | ?????????????????????# #?????????????????? | | ?????????????????????# #?????????????????? | | ?????????????????????# """ """ #?????????????????? | | ?????????????????????# """ """ ###########??###### | | ?????????????????????# """ """ # #??# | | ?????????????????????# ! # #??# | | ?????????????????????# ! = # #??# | | ?????????????????????########/## #### """ | | ????????????????############!% / # # """ | | ????????????????# ! g =!## # # """ | | ????????????????#* g##! ## / / | | ????????????????# ]]] ## ## = # # | | ????????????????# ]]] @## #######/#### ###### | | ????????????????# ]] # ###### ### #???? | | ????????????????# ! t + # | | ????????????? g g * # T + """ | | ???????????# #### # """ #### # """ | | ????????????????########### """"" #??###### """ | | ??????????????????????????# """"" #?????????""" | | ??????????????????????????# "" #?????????""" | | ??????????????????????????# [ ###???????? | | ??????????????????????????# """#????????? | | ??????????????????????????# % T"#????????? | | ??????????????????????????# ! """#????????? | | ??????????????????????????# " ###?????????? | | ?????????????????????????## #???????????? | | ?????????????????????????# " #???????????? | | ????+????????????????????## "" # #?????????? | | ????# ???????????????????# #?????????? | | ????# ???###??????? # # #?????????? | | ???## ??# ???# # #?#?????????? | | ???# ### ########/##### #???????????? | | ???# = #???????????? | | ???# T ! ! #???????????? | | ???#* !#???????????? | | ???# #### #####+######/####### #???????????? | | ????????????# # #???? ?????? #???????????? | +----------------------------------------------------+ Best States ------------- Heat Dissipation 39 Energy Generation 10 Energy Capacity 125 Matter Stores 300 Matter Capacity 300 Sight Range 16 Robot Scan Range 14 Terrain Scan Density 10 Resistance: KI 20 Resistance: TH 20 Resistance: EX 20 Resistance: EM 20 Resistance: I 20 Resistance: S 20 Resistance: P 20 Propulsion Shielding 66 Evasion (%) 63 Offensive Hacking 10 Defensive Hacking 10 Item Schematics ----------------- None Robot Schematics ------------------ None Fabricated ------------ Nothing Alien Tech Used ----------------- None Achievements -------------- None Challenges ------------ None Game ------ Seed BombSensorRedirector Manual? 0 Play Time 00:15:40 Cumulative 18.4 hours Start 2024.04.28 @ 18:46:23 End 2024.04.28 @ 19:01:19 Sessions 1 Manual Loads 0 Difficulty Adventurer Special Mode None Game No. 35 Rogue 0 Adventurer 35 Explorer 0 Win Type - Total 0 Types 0/0/0/0/0/0/0/0/0 Lore% 5 Gallery% 28 Achievement% 19 Wizard Run 0 Options --------- Layout 0 ASCII 0 Keyboard 0 Movement Mouse Keybinds 0 Fullscreen 1 Font 18/SmallcapsGlow Map View 38x25 Zoom Use 99% Tactical HUD 0 Map Filters NONE Filters NONE Steam 1 RUN: b91c43e2-faa7-4d2c-a30b-1cfa6d40774c